bitfinex/quotes_SOLUSD_20241116
["timestamp","ask_amount","ask_price","bid_price","bid_amount"]
[1731746255264,13.85595395,218.32,218.26,4.5816]
[1731746255265,13.85595395,218.3,218.25,0.1]
[1731746255487,4.5795,218.36,218.24,4.5819]
[1731746255488,13.85595395,218.31,218.27,0.1]
[1731746255887,13.85595395,218.31,218.26,4.5816]
[1731746256193,13.85595395,218.31,218.27,0.1]
[1731746256821,13.85595395,218.33,218.29,0.1]
[1731746256985,161.7,218.42,218.31,0.1]
[1731746257170,0.1,218.43,218.31,0.1]
[1731746257171,13.85595395,218.37,218.31,0.1]
[1731746257371,13.85595395,218.35,218.29,6.6161]
[1731746258080,13.85595395,218.33,218.29,6.6161]
[1731746258770,13.85595395,218.35,218.31,0.1]
[1731746259284,13.85595395,218.36,218.31,0.1]
[1731746259586,13.85595395,218.35,218.31,0.1]
[1731746259788,13.85595395,218.36,218.31,0.1]
[1731746260987,13.85595395,218.37,218.33,0.1]
[1731746263878,13.85595395,218.4,218.35,0.1]
[1731746264285,13.85595395,218.39,218.35,0.1]
[1731746264794,13.85595395,218.41,218.38,0.1]
[1731746264973,13.85595395,218.43,218.38,16.1449]
[1731746265298,161.7,218.5,218.38,16.1449]
[1731746265299,4.5768,218.49,218.38,16.1449]
[1731746265496,13.85595395,218.44,218.38,16.1449]
[1731746265794,13.85595395,218.43,218.38,16.1449]
[1731746265992,13.85595395,218.43,218.38,20.724]
[1731746266192,13.85595395,218.44,218.4,0.1]
[1731746266492,13.85595395,218.45,218.4,0.1]
[1731746266994,13.85595395,218.46,218.4,0.1]
[1731746267490,13.85595395,218.45,218.4,0.1]
[1731746268083,13.85595395,218.45,218.39,6.2273]
[1731746268084,13.85595395,218.44,218.39,6.2273]
[1731746269098,13.85595395,218.43,218.39,6.2273]
[1731746269474,13.85595395,218.44,218.4,0.1]
[1731746270197,13.85595395,218.44,218.39,6.2273]
[1731746270902,13.85595395,218.44,218.4,0.1]
[1731746271279,13.85595395,218.44,218.39,6.2273]
[1731746271817,13.85595395,218.42,218.38,16.0449]
[1731746271978,13.85595395,218.41,218.38,16.0449]
[1731746272390,13.85595395,218.42,218.38,16.0449]
[1731746272592,18.43405395,218.43,218.38,16.0449]
[1731746273296,4.5781,218.43,218.38,16.0449]
[1731746274481,18.43375395,218.45,218.4,0.1]
[1731746274801,13.85595395,218.47,218.4,13.95595395]
[1731746275486,13.85595395,218.46,218.4,0.1]
[1731746276801,18.43345395,218.46,218.4,0.1]
[1731746277003,18.43315395,218.48,218.42,0.1]
[1731746277177,13.85595395,218.49,218.42,0.1]
[1731746278397,13.85595395,218.49,218.42,13.95595395]
[1731746278597,4.5768,218.5,218.43,13.85595395]
[1731746278598,18.43275395,218.5,218.43,13.85595395]
[1731746279181,7.23229263,218.55,218.47,0.1]
[1731746279182,4.5763,218.52,218.47,0.1]
[1731746280307,4.5759,218.54,218.48,29.59185395]
[1731746280801,18.43185395,218.54,218.48,15.7359]
[1731746281102,13.85595395,218.5,218.48,15.7359]
[1731746281284,13.85595395,218.49,218.48,15.7359]
[1731746281682,13.85595395,218.49,218.44,6.4884]
[1731746282809,18.43285395,218.49,218.44,6.4884]
[1731746283803,4.66927462,218.55,218.44,6.4884]
[1731746284194,13.85595395,218.49,218.44,6.4884]
[1731746284585,13.85595395,218.5,218.45,0.1]
[1731746284803,13.85595395,218.5,218.44,11.0662]
[1731746284804,13.85595395,218.5,218.44,6.4884]
[1731746285099,13.85595395,218.45,218.44,6.4884]
[1731746285303,13.85595395,218.45,218.43,15.7359]
[1731746285604,13.85595395,218.46,218.43,15.7359]
[1731746286305,13.85595395,218.44,218.39,6.5884]
[1731746286605,13.85595395,218.43,218.39,6.5884]
[1731746286830,13.85595395,218.43,218.39,6.4884]
[1731746287788,20.09367462,218.5,218.38,15.7359]
[1731746287789,13.85595395,218.41,218.38,15.7359]
[1731746288308,13.85595395,218.43,218.39,0.1]
[1731746290908,8.8516833,218.43,218.39,0.1]
[1731746291291,4.577,218.48,218.39,0.1]
[1731746291487,4.577,218.48,218.43,0.1]
[1731746291804,8.8516833,218.49,218.45,0.1]
[1731746292905,13.82445751,218.48,218.45,0.1]
[1731746295015,13.82445751,218.5,218.45,0.1]
[1731746296689,13.82445751,218.48,218.45,0.1]
[1731746296887,18.40155751,218.48,218.45,0.1]
[1731746297694,18.40115751,218.5,218.45,0.1]
[1731746298007,18.40085751,218.52,218.47,15.6415]
[1731746298210,13.82445751,218.56,218.51,0.1]
[1731746298390,18.39995751,218.56,218.51,0.1]
[1731746299518,4.5755,218.56,218.49,13.82445751]
[1731746301189,4.5755,218.56,218.48,14.896484]
[1731746301389,13.82445751,218.51,218.47,15.5415]
[1731746301808,13.82445751,218.49,218.47,15.5415]
[1731746302013,13.82445751,218.51,218.47,15.5415]
[1731746303316,13.82445751,218.48,218.43,6.4698]
[1731746303491,18.40165751,218.48,218.43,6.4698]
[1731746304008,13.82445751,218.46,218.43,6.4698]
[1731746305608,13.82445751,218.46,218.42,15.5415]
[1731746305804,4.5775,218.46,218.42,15.5415]
[1731746306109,13.82445751,218.45,218.42,15.5415]
[1731746306292,4.5771,218.48,218.42,15.5415]
[1731746306494,13.82445751,218.47,218.42,15.5415]
[1731746307499,18.40175751,218.47,218.42,15.5415]
[1731746310897,13.82445751,218.47,218.42,15.5415]
[1731746311215,13.82445751,218.5,218.42,45.38995751]
[1731746313015,13.42226415,218.51,218.43,13.42366415]
[1731746313220,32.62254815,218.53,218.45,8.84566415]
[1731746313428,37.19864815,218.53,218.46,8.84566415]
[1731746314825,28.352984,218.53,218.47,6.2648]
[1731746315310,37.19864815,218.53,218.47,6.2648]
[1731746315513,13.42196415,218.52,218.47,6.2648]
[1731746315717,8.84566415,218.51,218.47,6.2648]
[1731746315921,8.84566415,218.5,218.47,6.2648]
[1731746316224,8.84566415,218.49,218.43,16.0232]
[1731746316927,8.84566415,218.49,218.43,11.4453]
[1731746317134,8.84566415,218.49,218.42,30.65196415]
[1731746317135,8.84566415,218.46,218.42,21.8063]
[1731746317419,8.84566415,218.44,218.42,21.8063]
[1731746317819,4.5776,218.46,218.42,21.8063]
[1731746317820,8.84566415,218.45,218.42,21.8063]
[1731746318724,13.42326415,218.46,218.42,21.8063]
[1731746318910,42.18173547,218.48,218.42,21.8063]
[1731746329725,13.82765147,218.46,218.42,21.8063]
[1731746330034,13.82765147,218.44,218.42,21.8063]
[1731746331116,13.82765147,218.44,218.42,15.5415]
[1731746335050,28.354584,218.45,218.42,15.5415]
[1731746335347,42.18223547,218.45,218.42,15.5415]
[1731746337637,23.776884,218.48,218.42,33.94735147]
[1731746337942,18.40455147,218.49,218.42,33.94735147]
[1731746338147,4.5769,218.49,218.43,13.82765147]
[1731746339041,4.5769,218.49,218.43,8.84607343]
[1731746339753,8.84607343,218.51,218.43,8.84607343]
[1731746340040,13.42217343,218.53,218.46,15.13677343]
[1731746340545,4.5761,218.53,218.46,15.13677343]
[1731746340925,7.10076183,218.56,218.49,8.84607343]
[1731746341138,20.52223526,218.56,218.49,8.84607343]
[1731746341549,20.52223526,218.56,218.5,16.1313]
[1731746341924,4.5754,218.56,218.5,16.1313]
[1731746342138,8.84607343,218.55,218.5,16.1313]
[1731746343353,7.10076183,218.59,218.5,32.1494]
[1731746343653,8.84607343,218.58,218.5,40.99547343]
[1731746344843,13.42097343,218.59,218.51,8.84607343]
[1731746345145,13.42097343,218.59,218.52,8.84607343]
[1731746347436,13.42107343,218.58,218.51,4.5763]
[1731746347752,8.84607343,218.56,218.5,27.5729]
[1731746348448,4.575,218.58,218.5,16.1313]
[1731746348449,8.84607343,218.55,218.5,16.1313]
[1731746348751,8.84607343,218.56,218.5,16.1313]
[1731746349453,32.62295743,218.57,218.5,16.1313]
[1731746349659,37.19825743,218.57,218.5,16.1313]
[1731746351164,8.84607343,218.55,218.5,16.1313]
[1731746352826,8.84607343,218.53,218.5,16.1313]
[1731746353058,13.42247343,218.51,218.5,16.1313]
[1731746353231,4.5764,218.51,218.46,6.2907]
[1731746353436,8.84607343,218.52,218.46,6.2907]
[1731746353642,8.84607343,218.52,218.46,10.8681]
[1731746354234,8.84607343,218.51,218.46,6.2907]
[1731746354555,8.84607343,218.5,218.46,6.2907]
[1731746354728,0.09367462,218.53,218.46,6.2907]
[1731746354729,8.84607343,218.51,218.46,6.2907]
[1731746354931,8.84607343,218.49,218.46,6.2907]
[1731746355434,13.42297343,218.49,218.46,6.2907]
[1731746357450,8.84607343,218.48,218.46,6.2907]
[1731746359033,8.84607343,218.47,218.46,6.2907]
[1731746360659,8.84607343,218.48,218.46,6.2907]
[1731746361960,8.84607343,218.48,218.45,16.4447]
[1731746362158,4.5768,218.5,218.45,16.4447]
[1731746362457,8.84607343,218.49,218.45,16.4447]
[1731746362865,161.7,218.56,218.45,29.86827343]
[1731746363166,8.84607343,218.54,218.47,8.84607343]
[1731746363339,8.84607343,218.56,218.49,6.4553]
[1731746363744,8.84607343,218.56,218.49,11.032]
[1731746364161,13.42147343,218.56,218.49,11.032]
[1731746365567,0.09367462,218.6,218.49,11.032]
[1731746365749,8.84607343,218.56,218.49,19.87807343]
[1731746367268,13.42087343,218.59,218.52,24.83647343]
[1731746367445,4.5748,218.59,218.52,24.83647343]
[1731746367757,8.84607343,218.6,218.52,24.83647343]
[1731746368744,13.42067343,218.6,218.52,29.41257343]
[1731746371158,13.42087343,218.59,218.52,29.41257343]
[1731746371361,8.84607343,218.58,218.52,20.5665]
[1731746373042,8.84607343,218.57,218.52,20.5665]
[1731746374560,8.84607343,218.58,218.52,20.5665]
[1731746375959,8.84607343,218.55,218.52,15.9904]
[1731746376349,8.84607343,218.57,218.52,15.9904]
[1731746376744,4.5745,218.6,218.52,15.9904]
[1731746376946,8.84607343,218.58,218.52,20.5665]
[1731746377156,0.1,218.61,218.52,32.0071]
[1731746377357,8.94607343,218.61,218.54,8.84607343]
[1731746377557,8.84607343,218.6,218.53,13.42187343]
[1731746378273,8.84607343,218.58,218.52,27.431]
[1731746378575,8.84607343,218.57,218.52,32.0072]
[1731746379161,8.84607343,218.56,218.52,27.431]
[1731746379373,8.84607343,218.56,218.52,32.0072]
[1731746380063,8.84607343,218.57,218.52,32.0072]
[1731746380452,8.84607343,218.58,218.52,32.0072]
[1731746382364,0.1,218.61,218.53,8.84607343]
[1731746382557,8.84607343,218.6,218.53,8.84607343]
[1731746382867,0.1,218.61,218.53,8.84607343]
[1731746383181,8.84607343,218.6,218.53,8.84607343]
[1731746383669,8.84607343,218.6,218.52,40.85327343]
[1731746384179,0.1,218.61,218.53,8.84607343]
[1731746384349,8.84607343,218.59,218.52,40.85327343]
[1731746384555,8.84607343,218.57,218.52,32.0072]
[1731746384861,8.84607343,218.58,218.52,32.0072]
[1731746385063,8.84607343,218.59,218.52,32.0072]
[1731746385279,8.84607343,218.59,218.52,40.85327343]
[1731746385575,8.84607343,218.6,218.52,40.85327343]
[1731746387473,0.1,218.61,218.52,40.85327343]
[1731746387773,8.94607343,218.61,218.52,40.85327343]
[1731746387982,0.1,218.61,218.54,8.84607343]
[1731746388154,8.94607343,218.61,218.54,8.84607343]
[1731746388359,8.84607343,218.6,218.53,8.84607343]
[1731746388576,8.84607343,218.6,218.54,4.5758]
[1731746388765,0.1,218.61,218.54,24.86137343]
[1731746388971,8.94607343,218.61,218.54,24.86137343]
[1731746390876,8.84607343,218.6,218.54,16.0153]
[1731746391462,8.94607343,218.61,218.54,24.86137343]
[1731746392380,8.84607343,218.6,218.54,16.0153]
[1731746393764,8.94607343,218.61,218.54,16.0153]
[1731746394185,0.1,218.61,218.54,24.86137343]
[1731746396182,0.1,218.61,218.54,16.0153]
[1731746396387,8.84607343,218.6,218.54,16.0153]
[1731746396687,8.84607343,218.59,218.54,16.0153]
[1731746399061,8.84607343,218.58,218.52,15.9904]
[1731746399417,8.84607343,218.57,218.52,20.5664]
[1731746401389,8.84607343,218.58,218.52,20.5664]
[1731746402381,8.84607343,218.57,218.52,20.5664]
[1731746402680,4.5746,218.6,218.52,20.5664]
[1731746402866,8.84607343,218.57,218.52,20.5664]
[1731746403383,8.84607343,218.56,218.52,20.5664]
[1731746403684,8.84607343,218.57,218.52,20.5664]
[1731746405281,8.84607343,218.55,218.52,15.9904]
[1731746405487,8.84607343,218.54,218.52,15.9904]
[1731746406597,8.84607343,218.53,218.52,15.9904]
[1731746408172,8.84607343,218.53,218.49,6.4553]
[1731746408374,8.84607343,218.51,218.49,6.4553]
[1731746408575,8.84607343,218.5,218.47,16.3443]
[1731746408769,8.84607343,218.48,218.43,6.1254]
[1731746408967,8.84607343,218.46,218.43,6.1254]
[1731746414286,11.5386,218.56,218.43,6.1254]
[1731746414287,8.84607343,218.45,218.43,6.1254]
[1731746414494,4.5764,218.51,218.43,6.1254]
[1731746414495,8.84607343,218.44,218.43,6.1254]
[1731746415884,8.84607343,218.45,218.43,6.1254]
[1731746420773,8.84607343,218.44,218.43,6.1254]
[1731746422583,24.12153862,218.53,218.43,6.1254]
[1731746422787,8.84607343,218.45,218.43,6.1254]
[1731746422974,23.776884,218.53,218.43,19.54947343]
[1731746423174,18.63696183,218.61,218.48,8.84607343]
[1731746423392,18.63696183,218.61,218.44,0.09367462]
[1731746423393,8.84607343,218.55,218.49,8.84607343]
[1731746423595,4.5745,218.6,218.49,8.84607343]
[1731746423796,8.84607343,218.57,218.5,24.52617343]
[1731746424190,8.84607343,218.56,218.5,15.6801]
[1731746424698,0.1,218.61,218.52,9.09705343]
[1731746424897,8.84607343,218.6,218.53,8.84607343]
[1731746425276,8.84607343,218.59,218.52,0.25098]
[1731746425476,8.84607343,218.59,218.52,9.09705343]
[1731746425699,8.84607343,218.58,218.51,15.37507343]
[1731746426583,8.84607343,218.58,218.52,4.5762]
[1731746428491,0.1,218.61,218.53,8.84607343]
[1731746428685,8.94607343,218.61,218.54,8.84607343]
[1731746428890,0.1,218.61,218.54,8.84607343]
[1731746429095,0.1,218.61,218.56,8.84607343]
[1731746429392,0.1,218.61,218.58,8.84607343]
[1731746429592,0.1,218.61,218.57,24.52617343]
[1731746429916,0.1,218.61,218.57,15.6801]
[1731746430088,0.1,218.61,218.57,20.255]
[1731746430601,0.1,218.61,218.57,29.10107343]
[1731746432601,8.94607343,218.61,218.57,15.6801]
[1731746432807,8.84607343,218.58,218.57,15.6801]
[1731746432988,8.84607343,218.58,218.52,15.8425]
[1731746433308,8.84607343,218.56,218.52,15.8425]
[1731746433693,8.84607343,218.55,218.52,15.8425]
[1731746433900,8.84607343,218.54,218.52,15.8425]
[1731746434095,8.84607343,218.53,218.52,15.8425]
[1731746435202,8.84607343,218.54,218.52,15.8425]
[1731746436414,8.84607343,218.53,218.52,15.8425]
[1731746437193,8.84607343,218.54,218.52,15.8425]
[1731746438895,8.84607343,218.53,218.48,4.5769]
[1731746439207,8.84607343,218.53,218.47,15.8425]
[1731746439389,8.84607343,218.52,218.47,15.8425]
[1731746439998,8.84607343,218.51,218.47,15.8425]
[1731746440393,8.84607343,218.49,218.47,15.8425]
[1731746440722,8.84607343,218.49,218.42,20.4208]
[1731746440896,8.84607343,218.47,218.42,20.4208]
[1731746441211,8.84607343,218.48,218.42,20.4208]
[1731746441709,8.84607343,218.47,218.42,20.4208]
[1731746442015,8.84607343,218.47,218.42,15.8425]
[1731746442513,8.84607343,218.45,218.42,15.8425]
[1731746444087,8.84607343,218.46,218.42,15.8425]
[1731746445615,8.84607343,218.45,218.42,15.8425]
[1731746446297,8.84607343,218.44,218.42,15.8425]
[1731746451512,28.353084,218.52,218.42,15.8425]
[1731746451810,8.84607343,218.47,218.42,15.8425]
[1731746452598,8.84607343,218.47,218.42,20.4206]
[1731746453512,4.5769,218.49,218.42,15.8425]
[1731746453513,8.84607343,218.46,218.42,15.8425]
[1731746455719,8.84607343,218.44,218.42,15.8425]
[1731746457215,8.84607343,218.45,218.42,15.8425]
[1731746457621,13.42357343,218.46,218.42,15.8425]
[1731746458319,8.84607343,218.46,218.42,15.8425]
[1731746460724,8.84607343,218.45,218.42,15.8425]
[1731746461428,8.84607343,218.43,218.36,22.5106]
[1731746461634,8.84607343,218.42,218.36,22.5106]
[1731746462615,8.84607343,218.42,218.36,27.09]
[1731746463527,8.84607343,218.38,218.31,23.95397343]
[1731746463715,8.84607343,218.37,218.31,15.1079]
[1731746464220,8.84607343,218.38,218.31,23.95397343]
[1731746464612,8.84607343,218.38,218.31,28.53457343]
[1731746467313,4.5784,218.42,218.33,8.84607343]
[1731746467521,8.84607343,218.41,218.34,8.84607343]
[1731746468335,13.42467343,218.41,218.34,8.84607343]
[1731746468917,35.38429372,218.46,218.39,8.84607343]
[1731746468918,4.5774,218.46,218.39,8.84607343]
[1731746469133,8.84607343,218.45,218.38,8.84607343]
[1731746469338,8.84607343,218.43,218.37,8.84607343]
[1731746469921,8.84607343,218.43,218.36,8.84607343]
[1731746470120,8.84607343,218.44,218.37,8.84607343]
[1731746470434,8.84607343,218.43,218.36,13.42537343]
[1731746470937,4.5779,218.45,218.36,4.5793]
[1731746470938,8.84607343,218.41,218.36,4.5793]
[1731746471138,8.84607343,218.41,218.34,13.42587343]
[1731746471818,8.84607343,218.41,218.33,20.29657343]
[1731746472235,8.84607343,218.4,218.33,20.29657343]
[1731746472428,8.84607343,218.38,218.31,28.53447343]
[1731746472738,8.84607343,218.38,218.31,19.6884]
[1731746474022,20.0,218.45,218.35,8.84607343]
[1731746474232,8.84607343,218.42,218.35,8.84607343]
[1731746474539,8.84607343,218.42,218.34,8.84607343]
[1731746475036,8.84607343,218.41,218.34,8.84607343]
[1731746475242,13.42477343,218.41,218.34,8.84607343]
[1731746476034,8.84607343,218.4,218.33,13.42617343]
[1731746478642,4.5787,218.41,218.35,8.84607343]
[1731746479823,4.5781,218.43,218.35,8.84607343]
[1731746480030,43.776884,218.47,218.37,8.84607343]
[1731746480247,8.84607343,218.45,218.37,8.84607343]
[1731746480439,8.84607343,218.45,218.33,4.5801]
[1731746480440,8.84607343,218.42,218.33,4.5801]
[1731746480750,8.84607343,218.41,218.34,8.84607343]
[1731746480952,8.84607343,218.4,218.35,0.12549]
[1731746481134,8.84607343,218.4,218.34,23.776884]
[1731746481623,8.84607343,218.39,218.34,23.776884]
[1731746482125,8.84607343,218.4,218.34,23.776884]
[1731746482442,8.84607343,218.39,218.33,23.776884]
[1731746483049,8.84607343,218.38,218.32,11.451]
[1731746484027,8.84607343,218.37,218.31,15.1079]
[1731746484625,13.42547343,218.37,218.31,15.1079]
[1731746487647,8.84607343,218.38,218.31,23.95397343]
[1731746487946,8.84607343,218.37,218.31,15.1079]
[1731746488243,8.84607343,218.36,218.31,15.1079]
[1731746488450,0.09367462,218.41,218.31,15.1079]
[1731746488451,8.84607343,218.37,218.31,15.1079]
[1731746489251,24.67177462,218.43,218.31,15.1079]
[1731746489746,8.84607343,218.37,218.31,15.1079]
[1731746490328,13.42547343,218.37,218.31,15.1079]
[1731746490826,8.84607343,218.35,218.31,15.1079]
[1731746493656,8.84607343,218.36,218.31,15.1079]
[1731746496843,8.84607343,218.38,218.31,23.95397343]
[1731746497147,8.84607343,218.37,218.31,15.1079]
[1731746497943,4.5794,218.37,218.31,15.1079]
[1731746500433,161.7,218.44,218.35,8.84607343]
[1731746500633,8.84607343,218.43,218.36,8.84607343]
[1731746500835,8.84607343,218.42,218.35,8.84607343]
[1731746501051,8.84607343,218.42,218.34,8.84607343]
[1731746501953,13.42457343,218.42,218.34,13.42597343]
[1731746502341,13.42457343,218.42,218.35,8.84607343]
[1731746505868,8.84607343,218.43,218.35,8.84607343]
[1731746506831,8.84607343,218.43,218.36,8.84607343]
[1731746508335,4.5783,218.42,218.36,8.84607343]
[1731746509958,4.5783,218.42,218.34,4.5799]
[1731746510153,4.5783,218.42,218.36,8.84607343]
[1731746510941,4.5783,218.42,218.35,8.84607343]
[1731746512543,8.84607343,218.38,218.31,26.5595]
[1731746513155,8.84607343,218.39,218.31,35.40557343]
[1731746513666,4.5791,218.38,218.31,35.40557343]
[1731746513957,4.5791,218.38,218.32,8.84607343]
[1731746514656,4.5781,218.43,218.33,8.84607343]
[1731746514857,4.5781,218.43,218.35,8.84607343]
[1731746514858,8.84607343,218.42,218.35,8.84607343]
[1731746515340,4.5781,218.43,218.35,8.84607343]
[1731746515542,8.84607343,218.42,218.35,8.84607343]
[1731746515856,4.5785,218.41,218.35,8.84607343]
[1731746516557,8.84607343,218.41,218.34,32.74844743]
[1731746517157,8.84607343,218.4,218.33,8.84607343]
[1731746517345,8.84607343,218.37,218.32,4.5803]
[1731746517660,8.84607343,218.37,218.31,26.5595]
[1731746518251,8.84607343,218.38,218.31,26.5595]
[1731746518439,4.5793,218.37,218.31,26.5595]
[1731746520146,8.84607343,218.39,218.31,35.40557343]
[1731746520741,4.5783,218.42,218.31,35.40557343]
[1731746520742,8.84607343,218.38,218.31,26.5595]
[1731746520945,8.84607343,218.38,218.31,35.40557343]
[1731746521364,4.5793,218.37,218.31,35.40557343]
[1731746522767,4.5793,218.37,218.31,26.5595]
[1731746522943,11.5448,218.44,218.34,8.84607343]
[1731746522944,4.5781,218.43,218.34,8.84607343]
[1731746523150,4.5781,218.43,218.36,8.84607343]
[1731746523465,13.42417343,218.43,218.36,8.84607343]
[1731746523966,13.42417343,218.43,218.35,8.84607343]
[1731746525161,13.42417343,218.43,218.35,13.42577343]
[1731746525846,8.84607343,218.38,218.32,11.451]
[1731746526050,8.84607343,218.37,218.31,15.1079]
[1731746526463,13.42557343,218.37,218.31,15.1079]
[1731746526865,4.5795,218.37,218.31,15.1079]
[1731746527370,4.5785,218.41,218.35,8.84607343]
[1731746528544,4.5785,218.41,218.34,8.84607343]
[1731746530164,4.5782,218.43,218.35,32.87393743]
[1731746530375,8.84607343,218.45,218.38,8.84607343]
[1731746530546,13.42397343,218.45,218.38,8.84607343]
[1731746530948,4.5779,218.45,218.39,24.18637343]
[1731746531449,4.5779,218.45,218.39,15.3403]
[1731746532562,8.84607343,218.47,218.39,24.18637343]
[1731746533361,13.42267343,218.5,218.43,8.84607343]
[1731746533564,4.5766,218.5,218.44,8.84607343]
[1731746534445,13.42267343,218.5,218.43,8.84607343]
[1731746534646,8.84607343,218.49,218.42,8.84607343]
[1731746534876,8.84607343,218.47,218.39,26.7877]
[1731746535165,4.5766,218.5,218.39,26.7877]
[1731746535166,8.84607343,218.42,218.39,15.3403]
[1731746535766,8.84607343,218.43,218.39,15.3403]
[1731746536167,13.42427343,218.43,218.39,15.3403]
[1731746536760,8.84607343,218.42,218.39,15.3403]
[1731746537072,4.5782,218.43,218.34,20.29557343]
[1731746537073,8.84607343,218.4,218.34,15.1905]
[1731746537573,8.84607343,218.39,218.34,15.1905]
[1731746538360,8.84607343,218.38,218.34,15.1905]
[1731746539370,8.84607343,218.37,218.34,15.1905]
[1731746539676,13.42527343,218.38,218.34,15.1905]
[1731746540670,8.84607343,218.37,218.34,15.1905]
[1731746541654,8.84607343,218.35,218.28,22.5897]
[1731746541874,8.84607343,218.3,218.28,22.5897]
[1731746542070,8.84607343,218.31,218.28,16.0867]
[1731746542461,8.84607343,218.32,218.28,16.0867]
[1731746542782,8.84607343,218.34,218.28,16.0867]
[1731746543266,8.84607343,218.35,218.28,24.93277343]
[1731746543464,4.5794,218.37,218.29,8.84607343]
[1731746543667,20.0,218.4,218.29,8.84607343]
[1731746543866,4.5789,218.39,218.29,13.42697343]
[1731746544076,8.84607343,218.36,218.29,13.42697343]
[1731746544858,13.42547343,218.37,218.29,13.42697343]
[1731746545176,13.42547343,218.37,218.3,8.84607343]
[1731746547562,13.42547343,218.37,218.29,13.42697343]
[1731746548788,20.09367462,218.41,218.31,8.84607343]
[1731746549094,8.84607343,218.38,218.31,8.84607343]
[1731746549265,8.84607343,218.37,218.3,8.84607343]
[1731746549662,13.42547343,218.37,218.3,8.84607343]
[1731746550789,8.84607343,218.37,218.3,8.84607343]
[1731746551773,8.84607343,218.42,218.34,8.84607343]
[1731746551976,8.84607343,218.43,218.36,8.84607343]
[1731746552662,4.5777,218.45,218.36,8.84607343]
[1731746552663,0.09367462,218.44,218.36,8.84607343]
[1731746552864,7.10575248,218.49,218.38,8.84607343]
[1731746553087,4.5766,218.5,218.39,8.84607343]
[1731746553385,8.84607343,218.48,218.41,8.84607343]
[1731746553562,8.84607343,218.47,218.4,25.18217343]
[1731746553977,8.84607343,218.45,218.4,16.3361]
[1731746554391,4.5777,218.45,218.4,16.3361]
[1731746554574,20.0,218.51,218.41,8.84607343]
[1731746554776,8.84607343,218.49,218.41,8.84607343]
[1731746554969,4.5766,218.5,218.43,8.84607343]
[1731746555492,13.42267343,218.5,218.43,8.84607343]
[1731746555664,13.42267343,218.5,218.42,8.84607343]
[1731746555865,13.42267343,218.5,218.43,23.776884]
[1731746557066,13.42267343,218.5,218.43,8.84607343]
[1731746559789,8.84607343,218.48,218.4,27.7829]
[1731746560089,8.84607343,218.48,218.41,8.84607343]
[1731746562289,8.84607343,218.46,218.4,27.7829]
[1731746562488,4.5772,218.47,218.4,16.3361]
[1731746562489,8.84607343,218.42,218.4,16.3361]
[1731746563694,4.5783,218.43,218.4,16.3361]
[1731746563995,13.42437343,218.43,218.4,16.3361]
[1731746565069,161.7,218.5,218.4,16.3361]
[1731746565290,4.5762,218.52,218.41,8.84607343]
[1731746565499,8.84607343,218.48,218.41,8.84607343]
[1731746565791,8.84607343,218.47,218.4,20.9147]
[1731746569087,8.84607343,218.49,218.41,8.84607343]
[1731746569295,24.66967462,218.53,218.41,8.84607343]
[1731746569502,4.66967462,218.53,218.41,8.84607343]
[1731746569696,8.84607343,218.49,218.41,8.84607343]
[1731746570482,4.577,218.48,218.41,8.84607343]
[1731746570678,4.577,218.48,218.4,27.7829]
[1731746570679,8.84607343,218.47,218.4,27.7829]
[1731746570979,13.42307343,218.48,218.4,25.18217343]
[1731746571179,13.42307343,218.48,218.4,29.76077343]
[1731746571685,4.577,218.48,218.41,8.84607343]
[1731746572081,13.42297343,218.49,218.42,6.2049]
[1731746572389,4.5769,218.49,218.43,8.84607343]
[1731746572593,4.5754,218.56,218.44,32.74844743]
[1731746572778,8.84607343,218.54,218.47,8.84607343]
[1731746573097,8.84607343,218.53,218.46,8.84607343]
[1731746573393,8.84607343,218.51,218.44,23.902374]
[1731746573594,8.84607343,218.52,218.45,8.84607343]
[1731746573907,8.84607343,218.53,218.45,8.84607343]
[1731746574271,13.42187343,218.54,218.46,24.20627343]
[1731746574505,8.84607343,218.56,218.49,8.84607343]
[1731746575492,8.84607343,218.56,218.48,32.74844743]
[1731746575700,8.84607343,218.55,218.48,0.12549]
[1731746575898,8.84607343,218.53,218.46,15.3602]
[1731746576286,16.10457462,218.6,218.46,15.3602]
[1731746576287,8.84607343,218.52,218.46,15.3602]
[1731746576798,8.84607343,218.5,218.46,15.3602]
[1731746578600,8.84607343,218.49,218.46,15.3602]